[Event "*** MasterClass Titled Tuesday Blitz"]
[Site "Chess.com"]
[Date "2017.09.05"]
[Round "2"]
[White "plouarzel"]
[Black "gammagramma"]
[Result "1/2-1/2"]
[WhiteElo "2441"]
[BlackElo "2347"]
[TimeControl "180+2"]
[EndTime "13:33:47 PDT"]
[Termination "Game drawn - insufficient material"]

1. e4 {[%clk 0:03:01.9]} 1... e6 {[%clk 0:02:56.6]} 2. d4 {[%clk 0:03:02.2]}
2... d5 {[%clk 0:02:57.7]} 3. Nd2 {[%clk 0:03:03.7]} 3... Nc6 {[%clk 0:02:57.1]}
4. Ngf3 {[%clk 0:03:01.6]} 4... Nf6 {[%clk 0:02:57.1]} 5. e5 {[%clk 0:03:01]}
5... Nd7 {[%clk 0:02:58.3]} 6. Bd3 {[%clk 0:02:57.2]} 6... Nb4 {[%clk 0:02:59]}
7. Be2 {[%clk 0:02:58.2]} 7... c5 {[%clk 0:03:00.4]} 8. c3 {[%clk 0:02:59.8]}
8... Nc6 {[%clk 0:03:01.8]} 9. O-O {[%clk 0:03:01.4]} 9... Be7 {[%clk
0:03:02.6]} 10. Re1 {[%clk 0:03:00]} 10... O-O {[%clk 0:03:03.3]} 11. Nf1 {[%clk
0:03:01.5]} 11... cxd4 {[%clk 0:03:04.5]} 12. cxd4 {[%clk 0:03:02.3]} 12... f6
{[%clk 0:03:05.9]} 13. exf6 {[%clk 0:03:02.4]} 13... Bxf6 {[%clk 0:03:02.5]} 14.
b3 {[%clk 0:02:54.3]} 14... e5 {[%clk 0:03:00]} 15. dxe5 {[%clk 0:02:40]} 15...
Ndxe5 {[%clk 0:03:01.9]} 16. Nxe5 {[%clk 0:02:38.2]} 16... Bxe5 {[%clk
0:02:59.7]} 17. Rb1 {[%clk 0:02:28.9]} 17... Qf6 {[%clk 0:02:59.7]} 18. Bf3
{[%clk 0:02:10.3]} 18... Bf5 {[%clk 0:02:57]} 19. Qxd5+ {[%clk 0:02:09.8]} 19...
Kh8 {[%clk 0:02:57.9]} 20. Ba3 {[%clk 0:01:58.9]} 20... Rfd8 {[%clk 0:02:45.4]}
21. Qb5 {[%clk 0:01:59.8]} 21... Bxb1 {[%clk 0:02:45.4]} 22. Rxb1 {[%clk
0:01:45.1]} 22... Nd4 {[%clk 0:02:44.6]} 23. Qxb7 {[%clk 0:01:45]} 23... Rab8
{[%clk 0:02:35.6]} 24. Qe4 {[%clk 0:01:41]} 24... Nxf3+ {[%clk 0:02:36]} 25.
Qxf3 {[%clk 0:01:38.5]} 25... Qxf3 {[%clk 0:02:36.6]} 26. gxf3 {[%clk
0:01:40.4]} 26... Rbc8 {[%clk 0:02:35.5]} 27. Re1 {[%clk 0:01:38.8]} 27... Bf6
{[%clk 0:02:32.6]} 28. Bc1 {[%clk 0:01:28.5]} 28... Rc2 {[%clk 0:02:28.1]} 29.
Be3 {[%clk 0:01:18.1]} 29... Rxa2 {[%clk 0:02:27.9]} 30. Ng3 {[%clk 0:01:19.1]}
30... h6 {[%clk 0:02:26]} 31. Ne4 {[%clk 0:01:19.2]} 31... Bd4 {[%clk
0:02:23.4]} 32. Rd1 {[%clk 0:01:19.3]} 32... Bb6 {[%clk 0:02:23.9]} 33. Re1
{[%clk 0:01:07.3]} 33... Rd3 {[%clk 0:02:16.6]} 34. Bxb6 {[%clk 0:00:58.9]}
34... axb6 {[%clk 0:02:16.5]} 35. Kg2 {[%clk 0:01:00.2]} 35... Rxb3 {[%clk
0:02:15.5]} 36. Rd1 {[%clk 0:01:00.9]} 36... Ra8 {[%clk 0:02:14.2]} 37. Rd7
{[%clk 0:01:00.5]} 37... Rf8 {[%clk 0:02:14.6]} 38. Nd2 {[%clk 0:01:00.4]} 38...
Rc3 {[%clk 0:02:10.9]} 39. Rd5 {[%clk 0:01:00.9]} 39... Rc5 {[%clk 0:02:09.6]}
40. Rd6 {[%clk 0:00:58.2]} 40... b5 {[%clk 0:02:11]} 41. Ne4 {[%clk 0:00:57]}
41... Rcf5 {[%clk 0:02:09.1]} 42. Rb6 {[%clk 0:00:57.2]} 42... Rxf3 {[%clk
0:01:58.2]} 43. Rxb5 {[%clk 0:00:58.2]} 43... R3f4 {[%clk 0:01:59.6]} 44. Re5
{[%clk 0:00:57.5]} 44... Kh7 {[%clk 0:01:59.7]} 45. Kg3 {[%clk 0:00:57.3]} 45...
g5 {[%clk 0:01:58.9]} 46. Re6 {[%clk 0:00:52.3]} 46... R8f7 {[%clk 0:01:57.7]}
47. Kg2 {[%clk 0:00:53.4]} 47... Kg7 {[%clk 0:01:58.2]} 48. Re8 {[%clk
0:00:49.8]} 48... R7f5 {[%clk 0:01:52.9]} 49. Kg1 {[%clk 0:00:46.9]} 49... h5
{[%clk 0:01:45.7]} 50. Ng3 {[%clk 0:00:47.9]} 50... Kf7 {[%clk 0:01:31.7]} 51.
Re2 {[%clk 0:00:37.3]} 51... Rd5 {[%clk 0:01:18.1]} 52. Nxh5 {[%clk 0:00:37.1]}
52... Ra4 {[%clk 0:01:13.6]} 53. Kg2 {[%clk 0:00:36.6]} 53... Rd1 {[%clk
0:01:10.5]} 54. Ng3 {[%clk 0:00:36.2]} 54... Raa1 {[%clk 0:01:06.2]} 55. Re4
{[%clk 0:00:32.7]} 55... Kf6 {[%clk 0:01:03.4]} 56. Rb4 {[%clk 0:00:32]} 56...
Rdb1 {[%clk 0:01:01]} 57. Rc4 {[%clk 0:00:31.7]} 57... Rg1+ {[%clk 0:00:57.4]}
58. Kf3 {[%clk 0:00:32.2]} 58... Ra3+ {[%clk 0:00:57]} 59. Kg4 {[%clk
0:00:33.5]} 59... Rg2 {[%clk 0:00:57.1]} 60. Rc6+ {[%clk 0:00:28.6]} 60... Kf7
{[%clk 0:00:58.3]} 61. Rc7+ {[%clk 0:00:28.4]} 61... Ke6 {[%clk 0:00:58.4]} 62.
Rc6+ {[%clk 0:00:27.7]} 62... Kd7 {[%clk 0:00:58.5]} 63. Rc5 {[%clk 0:00:17.4]}
63... Rxh2 {[%clk 0:00:53.4]} 64. Rf5 {[%clk 0:00:15.8]} 64... Ke6 {[%clk
0:00:41.4]} 65. Rf8 {[%clk 0:00:17.2]} 65... Ra5 {[%clk 0:00:34.4]} 66. Re8+
{[%clk 0:00:12.9]} 66... Kf7 {[%clk 0:00:35.6]} 67. Re2 {[%clk 0:00:13.2]} 67...
Kf6 {[%clk 0:00:32.6]} 68. Rc2 {[%clk 0:00:12.6]} 68... Rh4+ {[%clk 0:00:32]}
69. Kf3 {[%clk 0:00:13.9]} 69... Rf4+ {[%clk 0:00:31.2]} 70. Kg2 {[%clk
0:00:15.4]} 70... Kg6 {[%clk 0:00:32.4]} 71. Rc6+ {[%clk 0:00:16.1]} 71... Rf6
{[%clk 0:00:33.4]} 72. Rc2 {[%clk 0:00:17.7]} 72... Ra4 {[%clk 0:00:33.2]} 73.
Rd2 {[%clk 0:00:18.4]} 73... Raf4 {[%clk 0:00:34.1]} 74. Rc2 {[%clk 0:00:19.6]}
74... Ra4 {[%clk 0:00:32.7]} 75. Re2 {[%clk 0:00:20.9]} 75... Rff4 {[%clk
0:00:33]} 76. Re6+ {[%clk 0:00:21.5]} 76... Rf6 {[%clk 0:00:33.7]} 77. Re2
{[%clk 0:00:22.9]} 77... Rfa6 {[%clk 0:00:34.4]} 78. Rd2 {[%clk 0:00:23.3]}
78... Rb4 {[%clk 0:00:35.3]} 79. Rd8 {[%clk 0:00:22.2]} 79... Ra2 {[%clk
0:00:33.8]} 80. Rf8 {[%clk 0:00:22.6]} 80... Rf4 {[%clk 0:00:32.4]} 81. Rg8+
{[%clk 0:00:18.2]} 81... Kh6 {[%clk 0:00:24.4]} 82. Nh1 {[%clk 0:00:19.1]} 82...
Rg4+ {[%clk 0:00:19]} 83. Kf3 {[%clk 0:00:18.9]} 83... Rf4+ {[%clk 0:00:09.9]}
84. Kg2 {[%clk 0:00:20.1]} 84... Rf5 {[%clk 0:00:10.3]} 85. Kg3 {[%clk
0:00:20.7]} 85... Kh7 {[%clk 0:00:10.8]} 86. Rc8 {[%clk 0:00:21.4]} 86... Kg6
{[%clk 0:00:10.4]} 87. Kg2 {[%clk 0:00:22.9]} 87... Kf7 {[%clk 0:00:11.6]} 88.
Rc7+ {[%clk 0:00:24.1]} 88... Ke6 {[%clk 0:00:12.7]} 89. Rc6+ {[%clk 0:00:26]}
89... Kd5 {[%clk 0:00:13.9]} 90. Rc3 {[%clk 0:00:27.1]} 90... Kd4 {[%clk
0:00:15]} 91. Rc8 {[%clk 0:00:28.2]} 91... Kd3 {[%clk 0:00:14.7]} 92. Re8 {[%clk
0:00:29.7]} 92... Rc2 {[%clk 0:00:13.1]} 93. Re3+ {[%clk 0:00:30.3]} 93... Kd4
{[%clk 0:00:14.6]} 94. Re8 {[%clk 0:00:31.7]} 94... Kc3 {[%clk 0:00:15.8]} 95.
Rc8+ {[%clk 0:00:32.6]} 95... Kb2 {[%clk 0:00:17.2]} 96. Rb8+ {[%clk 0:00:33]}
96... Kc1 {[%clk 0:00:18.3]} 97. Re8 {[%clk 0:00:34.9]} 97... Kd1 {[%clk
0:00:19]} 98. Re7 {[%clk 0:00:36]} 98... Rd2 {[%clk 0:00:19.2]} 99. Kf1 {[%clk
0:00:35.5]} 99... g4 {[%clk 0:00:18.9]} 100. Re1+ {[%clk 0:00:36.7]} 100... Kc2
{[%clk 0:00:20.3]} 101. Re3 {[%clk 0:00:38.3]} 101... Rf4 {[%clk 0:00:20]} 102.
Kg2 {[%clk 0:00:38.7]} 102... Kd1 {[%clk 0:00:21.1]} 103. Kf1 {[%clk 0:00:39.5]}
103... Rf3 {[%clk 0:00:19.3]} 104. Re1+ {[%clk 0:00:27.4]} 104... Kc2 {[%clk
0:00:20.5]} 105. Kg2 {[%clk 0:00:20.6]} 105... Kd3 {[%clk 0:00:18.2]} 106. Rf1
{[%clk 0:00:19.6]} 106... Ke4 {[%clk 0:00:11]} 107. Ng3+ {[%clk 0:00:20.8]}
107... Kf4 {[%clk 0:00:11.7]} 108. Nh5+ {[%clk 0:00:22.2]} 108... Kg5 {[%clk
0:00:12.9]} 109. Ng3 {[%clk 0:00:23.8]} 109... Kh4 {[%clk 0:00:13.8]} 110. Rh1+
{[%clk 0:00:23.6]} 110... Kg5 {[%clk 0:00:15.3]} 111. Rf1 {[%clk 0:00:25.1]}
111... Kg6 {[%clk 0:00:15.9]} 112. Ne4 {[%clk 0:00:23.5]} 112... Ra2 {[%clk
0:00:16.8]} 113. Ng3 {[%clk 0:00:22.5]} 113... Kg5 {[%clk 0:00:17.7]} 114. Ne4+
{[%clk 0:00:23.6]} 114... Kg6 {[%clk 0:00:19]} 115. Ng3 {[%clk 0:00:24.9]}
115... Rf4 {[%clk 0:00:20.4]} 116. Nh1 {[%clk 0:00:23.3]} 116... Kg5 {[%clk
0:00:20.2]} 117. Ng3 {[%clk 0:00:24.6]} 117... Kg6 {[%clk 0:00:20]} 118. Nh1
{[%clk 0:00:25.4]} 118... Kf5 {[%clk 0:00:21.4]} 119. Ng3+ {[%clk 0:00:26.5]}
119... Kg5 {[%clk 0:00:23]} 120. Nh1 {[%clk 0:00:26.8]} 120... Kh4 {[%clk
0:00:24.3]} 121. Ng3 {[%clk 0:00:28]} 121... Rf3 {[%clk 0:00:25.7]} 122. Rh1+
{[%clk 0:00:25.7]} 122... Kg5 {[%clk 0:00:26.8]} 123. Rf1 {[%clk 0:00:27.3]}
123... Kf4 {[%clk 0:00:27.6]} 124. Nh5+ {[%clk 0:00:27.8]} 124... Ke5 {[%clk
0:00:28.2]} 125. Ng3 {[%clk 0:00:28.6]} 125... Rb3 {[%clk 0:00:28.9]} 126. Re1+
{[%clk 0:00:29.4]} 126... Kf6 {[%clk 0:00:29.3]} 127. Ne4+ {[%clk 0:00:24.9]}
127... Kg6 {[%clk 0:00:29.5]} 128. Ng3 {[%clk 0:00:26.2]} 128... Rbb2 {[%clk
0:00:30.5]} 129. Rf1 {[%clk 0:00:26.6]} 129... Kg5 {[%clk 0:00:30.9]} 130. Ne4+
{[%clk 0:00:28.2]} 130... Kf4 {[%clk 0:00:32.3]} 131. Ng3 {[%clk 0:00:27.6]}
131... Rc2 {[%clk 0:00:33.6]} 132. Nh5+ {[%clk 0:00:29]} 132... Ke4 {[%clk
0:00:34]} 133. Ng3+ {[%clk 0:00:30.9]} 133... Kd3 {[%clk 0:00:34.9]} 134. Nf5
{[%clk 0:00:28.9]} 134... Ke4 {[%clk 0:00:35.3]} 135. Ng3+ {[%clk 0:00:30.1]}
135... Kf4 {[%clk 0:00:36.4]} 136. Nh5+ {[%clk 0:00:31.3]} 136... Kg5 {[%clk
0:00:37.7]} 137. Ng3 {[%clk 0:00:32.8]} 137... Ra3 {[%clk 0:00:37.6]} 138. Re1
{[%clk 0:00:29.8]} 138... Rca2 {[%clk 0:00:37.4]} 139. Re5+ {[%clk 0:00:30.3]}
139... Kf6 {[%clk 0:00:38.6]} 140. Rf5+ {[%clk 0:00:30.8]} 140... Kg6 {[%clk
0:00:39.5]} 141. Rf4 {[%clk 0:00:31.6]} 141... Kg5 {[%clk 0:00:39.5]} 142. Rf5+
{[%clk 0:00:33]} 142... Kg6 {[%clk 0:00:39.6]} 143. Rf4 {[%clk 0:00:34.4]}
143... Ra4 {[%clk 0:00:39.8]} 144. Rf8 {[%clk 0:00:35.4]} 144... Kg5 {[%clk
0:00:37]} 145. Rf5+ {[%clk 0:00:35.2]} 145... Kg6 {[%clk 0:00:37.8]} 146. Rf8
{[%clk 0:00:36.7]} 146... Ra6 {[%clk 0:00:38.2]} 147. Rg8+ {[%clk 0:00:37.2]}
147... Kf6 {[%clk 0:00:36.9]} 148. Rxg4 {[%clk 0:00:38.7]} 148... Rb2 {[%clk
0:00:38]} 149. Rf4+ {[%clk 0:00:39.6]} 149... Kg5 {[%clk 0:00:39]} 150. Rf5+
{[%clk 0:00:40.4]} 150... Kg4 {[%clk 0:00:38.2]} 151. Rf8 {[%clk 0:00:41.4]}
151... Ra1 {[%clk 0:00:38.8]} 152. Rg8+ {[%clk 0:00:40.6]} 152... Kf4 {[%clk
0:00:39.8]} 153. Nh5+ {[%clk 0:00:41.2]} 153... Ke5 {[%clk 0:00:40.5]} 154. Rg5+
{[%clk 0:00:38.5]} 154... Kd4 {[%clk 0:00:40.2]} 155. Ng3 {[%clk 0:00:38.6]}
155... Rbb1 {[%clk 0:00:41.2]} 156. Rg8 {[%clk 0:00:36]} 156... Ke5 {[%clk
0:00:41.7]} 157. Rf8 {[%clk 0:00:35.9]} 157... Rg1+ {[%clk 0:00:41.7]} 158. Kh3
{[%clk 0:00:36]} 158... Rgb1 {[%clk 0:00:39.9]} 159. Kg4 {[%clk 0:00:35.1]}
159... Ra4+ {[%clk 0:00:39.3]} 160. f4+ {[%clk 0:00:36.4]} 160... Ke6 {[%clk
0:00:40.6]} 161. Re8+ {[%clk 0:00:27.1]} 161... Kf7 {[%clk 0:00:41.4]} 162. Rc8
{[%clk 0:00:19]} 162... Rf1 {[%clk 0:00:37.7]} 163. Nh5 {[%clk 0:00:11.3]}
163... Rg1+ {[%clk 0:00:38.4]} 164. Kf3 {[%clk 0:00:11.8]} 164... Ra3+ {[%clk
0:00:29.6]} 165. Ke4 {[%clk 0:00:12.6]} 165... Ra5 {[%clk 0:00:22.6]} 166. Rc7+
{[%clk 0:00:11.4]} 166... Kg6 {[%clk 0:00:21.8]} 167. Rg7+ {[%clk 0:00:12.3]}
167... Kxh5 {[%clk 0:00:22.4]} 168. Rxg1 {[%clk 0:00:14.2]} 168... Ra4+ {[%clk
0:00:23.3]} 169. Ke5 {[%clk 0:00:14.1]} 169... Ra5+ {[%clk 0:00:24.7]} 170. Ke6
{[%clk 0:00:13.3]} 170... Ra6+ {[%clk 0:00:26.1]} 171. Ke5 {[%clk 0:00:13]}
171... Ra5+ {[%clk 0:00:27.5]} 172. Kd6 {[%clk 0:00:13.3]} 172... Ra6+ {[%clk
0:00:28.8]} 173. Kd5 {[%clk 0:00:10.4]} 173... Ra5+ {[%clk 0:00:30.2]} 174. Ke4
{[%clk 0:00:11.7]} 174... Ra4+ {[%clk 0:00:31.6]} 175. Kf3 {[%clk 0:00:12.5]}
175... Ra3+ {[%clk 0:00:32.7]} 176. Ke2 {[%clk 0:00:14]} 176... Ra2+ {[%clk
0:00:33.9]} 177. Kd3 {[%clk 0:00:15.4]} 177... Ra3+ {[%clk 0:00:35.3]} 178. Kd4
{[%clk 0:00:14.1]} 178... Ra4+ {[%clk 0:00:36.5]} 179. Ke5 {[%clk 0:00:15.3]}
179... Ra5+ {[%clk 0:00:37.7]} 180. Kd6 {[%clk 0:00:12.7]} 180... Rf5 {[%clk
0:00:34.6]} 181. Rf1 {[%clk 0:00:12.9]} 181... Kg4 {[%clk 0:00:35.3]} 182. Ke6
{[%clk 0:00:14.4]} 182... Rxf4 {[%clk 0:00:34]} 183. Rg1+ {[%clk 0:00:14.6]}
183... Kf3 {[%clk 0:00:34.5]} 184. Ke5 {[%clk 0:00:15.7]} 184... Re4+ {[%clk
0:00:35.2]} 185. Kd5 {[%clk 0:00:17.1]} 185... Re2 {[%clk 0:00:36.3]} 186. Rf1+
{[%clk 0:00:18.2]} 186... Rf2 {[%clk 0:00:37.8]} 187. Rxf2+ {[%clk 0:00:19.5]}
187... Kxf2 {[%clk 0:00:39]} 1/2-1/2

[Event "*** MasterClass Titled Tuesday Blitz"]
[Site "Chess.com"]
[Date "2017.09.05"]
[Round "3"]
[White "stefanodinn"]
[Black "plouarzel"]
[Result "1-0"]
[WhiteElo "2207"]
[BlackElo "2428"]
[TimeControl "180+2"]
[EndTime "13:37:16 PDT"]
[Termination "stefanodinn won by checkmate"]

1. e4 {[%clk 0:03:01.9]} 1... d6 {[%clk 0:02:52.4]} 2. d4 {[%clk 0:03:02.1]}
2... Nf6 {[%clk 0:02:52]} 3. f3 {[%clk 0:03:02.5]} 3... d5 {[%clk 0:02:50.4]} 4.
e5 {[%clk 0:02:52.3]} 4... Nfd7 {[%clk 0:02:50.6]} 5. f4 {[%clk 0:02:49.7]} 5...
c5 {[%clk 0:02:50.5]} 6. Nf3 {[%clk 0:02:46.7]} 6... cxd4 {[%clk 0:02:48]} 7. e6
{[%clk 0:02:34.8]} 7... fxe6 {[%clk 0:02:40.8]} 8. Nxd4 {[%clk 0:02:35.7]} 8...
Nf6 {[%clk 0:02:38.6]} 9. Bb5+ {[%clk 0:02:30.6]} 9... Kf7 {[%clk 0:02:26.7]}
10. O-O {[%clk 0:02:20.5]} 10... a6 {[%clk 0:02:22.2]} 11. Bd3 {[%clk
0:02:13.5]} 11... Nc6 {[%clk 0:02:20.6]} 12. Nf3 {[%clk 0:01:48.7]} 12... h6
{[%clk 0:02:18.9]} 13. Ne5+ {[%clk 0:01:45.7]} 13... Ke8 {[%clk 0:02:13.9]} 14.
Bg6# {[%clk 0:01:42.5]} 1-0

[Event "*** MasterClass Titled Tuesday Blitz"]
[Site "Chess.com"]
[Date "2017.09.05"]
[Round "3"]
[White "chesstatour"]
[Black "Hafez_Bakr"]
[Result "1-0"]
[WhiteElo "2070"]
[BlackElo "1866"]
[TimeControl "180+2"]
[EndTime "13:37:44 PDT"]
[Termination "chesstatour won by resignation"]

1. c4 {[%clk 0:03:01.9]} 1... f5 {[%clk 0:02:59.4]} 2. Nc3 {[%clk 0:03:02.7]}
2... Nf6 {[%clk 0:03:00.1]} 3. g3 {[%clk 0:03:01.8]} 3... d6 {[%clk 0:03:01.1]}
4. Bg2 {[%clk 0:03:03.4]} 4... e5 {[%clk 0:03:01.9]} 5. d3 {[%clk 0:03:03.8]}
5... c6 {[%clk 0:03:03]} 6. Nf3 {[%clk 0:03:05.4]} 6... Be7 {[%clk 0:03:03.7]}
7. O-O {[%clk 0:03:06.9]} 7... O-O {[%clk 0:03:01.9]} 8. Rb1 {[%clk 0:03:07.7]}
8... a5 {[%clk 0:02:56.1]} 9. b3 {[%clk 0:03:04.4]} 9... Be6 {[%clk 0:02:54.8]}
10. Ng5 {[%clk 0:02:37.9]} 10... Bd7 {[%clk 0:02:52]} 11. f4 {[%clk 0:02:38.7]}
11... h6 {[%clk 0:02:51.4]} 12. Nf3 {[%clk 0:02:33.5]} 12... Ng4 {[%clk
0:02:43.6]} 13. h3 {[%clk 0:02:14.9]} 13... Qb6+ {[%clk 0:02:43.7]} 14. d4
{[%clk 0:02:15.6]} 14... exd4 {[%clk 0:02:39.7]} 15. Na4 {[%clk 0:02:16.2]}
15... Qa7 {[%clk 0:02:29.9]} 16. hxg4 {[%clk 0:02:13.9]} 16... fxg4 {[%clk
0:02:28.5]} 17. Nxd4 {[%clk 0:02:01.7]} 17... Bf6 {[%clk 0:02:28.1]} 18. e3
{[%clk 0:01:58.7]} 18... c5 {[%clk 0:02:13.2]} 19. Nb5 {[%clk 0:01:54.9]} 19...
Bxb5 {[%clk 0:02:12.1]} 20. cxb5 {[%clk 0:01:56.5]} 20... b6 {[%clk 0:02:12.9]}
21. Qd5+ {[%clk 0:01:49.9]} 1-0

[Event "*** MasterClass Titled Tuesday Blitz"]
[Site "Chess.com"]
[Date "2017.09.05"]
[Round "3"]
[White "ViIIagra"]
[Black "grzechu96"]
[Result "1-0"]
[WhiteElo "2673"]
[BlackElo "2436"]
[TimeControl "180+2"]
[EndTime "13:38:42 PDT"]
[Termination "ViIIagra won by resignation"]

1. e4 {[%clk 0:02:58.2]} 1... c5 {[%clk 0:02:59.2]} 2. Nf3 {[%clk 0:02:59.4]}
2... d6 {[%clk 0:03:00.4]} 3. Bb5+ {[%clk 0:03:00.3]} 3... Nd7 {[%clk
0:03:01.3]} 4. O-O {[%clk 0:03:01]} 4... Nf6 {[%clk 0:02:57.8]} 5. Re1 {[%clk
0:03:01.9]} 5... a6 {[%clk 0:02:59.1]} 6. Bd3 {[%clk 0:03:03]} 6... e6 {[%clk
0:02:57.7]} 7. c3 {[%clk 0:03:03.2]} 7... b5 {[%clk 0:02:56.5]} 8. Bc2 {[%clk
0:03:04.5]} 8... c4 {[%clk 0:02:57.8]} 9. d4 {[%clk 0:03:01.5]} 9... cxd3 {[%clk
0:02:58.6]} 10. Qxd3 {[%clk 0:03:02.5]} 10... Bb7 {[%clk 0:03:00]} 11. Nbd2
{[%clk 0:03:00.8]} 11... Be7 {[%clk 0:03:00.5]} 12. Qe2 {[%clk 0:02:59.8]} 12...
O-O {[%clk 0:03:00.7]} 13. Nf1 {[%clk 0:03:01.4]} 13... Nc5 {[%clk 0:03:00.4]}
14. Ng3 {[%clk 0:03:02.4]} 14... Rc8 {[%clk 0:02:58.7]} 15. Bf4 {[%clk
0:02:51.3]} 15... Qb6 {[%clk 0:02:58]} 16. Rad1 {[%clk 0:02:50.2]} 16... Rfd8
{[%clk 0:02:56.8]} 17. e5 {[%clk 0:02:34.7]} 17... dxe5 {[%clk 0:02:57.7]} 18.
Nxe5 {[%clk 0:02:36.6]} 18... Nd5 {[%clk 0:02:29]} 19. Bxh7+ {[%clk 0:02:32.9]}
19... Kxh7 {[%clk 0:01:46]} 20. Qh5+ {[%clk 0:02:33.3]} 20... Kg8 {[%clk
0:01:47.2]} 21. Qxf7+ {[%clk 0:02:34.7]} 21... Kh7 {[%clk 0:01:48.7]} 22. Nh5
{[%clk 0:01:32.5]} 22... Rg8 {[%clk 0:01:44.5]} 23. Qg6+ {[%clk 0:01:28.8]} 1-0

[Event "*** MasterClass Titled Tuesday Blitz"]
[Site "Chess.com"]
[Date "2017.09.05"]
[Round "3"]
[White "TrickyTrapChess"]
[Black "WeiYi1999"]
[Result "1-0"]
[WhiteElo "2287"]
[BlackElo "2116"]
[TimeControl "180+2"]
[EndTime "13:38:52 PDT"]
[Termination "TrickyTrapChess won by resignation"]

1. c4 {[%clk 0:03:02]} 1... c6 {[%clk 0:03:00.3]} 2. d4 {[%clk 0:03:00.6]} 2...
d5 {[%clk 0:03:01.4]} 3. cxd5 {[%clk 0:03:01.2]} 3... cxd5 {[%clk 0:03:02]} 4.
Nc3 {[%clk 0:03:01.4]} 4... Nf6 {[%clk 0:02:57.4]} 5. Nf3 {[%clk 0:03:00.8]}
5... Nc6 {[%clk 0:02:57.8]} 6. Bf4 {[%clk 0:03:00.6]} 6... e6 {[%clk 0:02:53.6]}
7. e3 {[%clk 0:02:59.8]} 7... a6 {[%clk 0:02:54.7]} 8. Bd3 {[%clk 0:02:58.9]}
8... Be7 {[%clk 0:02:55.2]} 9. O-O {[%clk 0:02:59.4]} 9... O-O {[%clk
0:02:55.9]} 10. h3 {[%clk 0:02:58.6]} 10... b5 {[%clk 0:02:55.6]} 11. Rc1 {[%clk
0:02:57.2]} 11... Bb7 {[%clk 0:02:54]} 12. Ne5 {[%clk 0:02:54.8]} 12... Rc8
{[%clk 0:02:46.5]} 13. a3 {[%clk 0:02:51.3]} 13... Nxe5 {[%clk 0:02:41.3]} 14.
Bxe5 {[%clk 0:02:50.2]} 14... Nd7 {[%clk 0:02:38.5]} 15. Bg3 {[%clk 0:02:48.1]}
15... Nb6 {[%clk 0:02:37.4]} 16. Re1 {[%clk 0:02:40.8]} 16... Nc4 {[%clk
0:02:35.7]} 17. Qc2 {[%clk 0:02:38.6]} 17... g6 {[%clk 0:02:26.9]} 18. Bf4
{[%clk 0:02:29.1]} 18... Qa5 {[%clk 0:02:25.3]} 19. f3 {[%clk 0:02:08.9]} 19...
b4 {[%clk 0:02:21.8]} 20. axb4 {[%clk 0:02:07.9]} 20... Bxb4 {[%clk 0:02:19.5]}
21. Red1 {[%clk 0:02:04.5]} 21... Nxb2 {[%clk 0:02:15.3]} 22. Qxb2 {[%clk
0:02:03]} 22... Ba3 {[%clk 0:02:11.1]} 23. Qa1 {[%clk 0:01:55.3]} 23... Bc6
{[%clk 0:01:49.4]} 24. Bd6 {[%clk 0:01:53.6]} 24... Bb4 {[%clk 0:01:25.1]} 25.
Qxa5 {[%clk 0:01:51.4]} 25... Bxa5 {[%clk 0:01:27]} 26. Bxf8 {[%clk 0:01:52.3]}
1-0

[Event "*** MasterClass Titled Tuesday Blitz"]
[Site "Chess.com"]
[Date "2017.09.05"]
[Round "3"]
[White "mwpchess"]
[Black "2L8IWUN"]
[Result "1-0"]
[WhiteElo "2472"]
[BlackElo "1770"]
[TimeControl "180+2"]
[EndTime "13:39:16 PDT"]
[Termination "mwpchess won by resignation"]

1. e4 {[%clk 0:03:01.9]} 1... e6 {[%clk 0:02:56.8]} 2. d4 {[%clk 0:03:02.3]}
2... d5 {[%clk 0:02:54.5]} 3. Nc3 {[%clk 0:03:03]} 3... dxe4 {[%clk 0:02:48.5]}
4. Nxe4 {[%clk 0:03:03.3]} 4... Bd7 {[%clk 0:02:49.4]} 5. Nf3 {[%clk 0:03:02.5]}
5... Bc6 {[%clk 0:02:51.3]} 6. Bd3 {[%clk 0:03:03.3]} 6... Nd7 {[%clk 0:02:53]}
7. Bg5 {[%clk 0:02:57.8]} 7... Be7 {[%clk 0:02:45]} 8. Bxe7 {[%clk 0:02:57.1]}
8... Qxe7 {[%clk 0:02:43.7]} 9. c3 {[%clk 0:02:55.7]} 9... Ngf6 {[%clk
0:02:30.4]} 10. Qe2 {[%clk 0:02:55.3]} 10... Nxe4 {[%clk 0:02:26.1]} 11. Bxe4
{[%clk 0:02:55.7]} 11... Bxe4 {[%clk 0:02:28]} 12. Qxe4 {[%clk 0:02:56.1]} 12...
c6 {[%clk 0:02:29.9]} 13. O-O {[%clk 0:02:56.2]} 13... O-O {[%clk 0:02:21.7]}
14. Rfe1 {[%clk 0:02:50.1]} 14... Qd6 {[%clk 0:02:10]} 15. Rad1 {[%clk
0:02:45.5]} 15... Rfe8 {[%clk 0:02:02.7]} 16. Ne5 {[%clk 0:02:44.7]} 16... Rad8
{[%clk 0:01:54.7]} 17. Qe2 {[%clk 0:02:36.1]} 17... f6 {[%clk 0:01:24.9]} 18.
Nf3 {[%clk 0:02:34.1]} 18... Kf7 {[%clk 0:01:04.6]} 19. h3 {[%clk 0:02:35.1]}
19... Qc7 {[%clk 0:00:45.2]} 20. Qc2 {[%clk 0:02:32.3]} 20... e5 {[%clk
0:00:38.2]} 21. Qxh7 {[%clk 0:02:29.9]} 21... exd4 {[%clk 0:00:38]} 22. Nxd4
{[%clk 0:02:26]} 22... Nc5 {[%clk 0:00:24.8]} 23. Qh5+ {[%clk 0:02:25.7]} 23...
Kf8 {[%clk 0:00:23.3]} 24. Qxc5+ {[%clk 0:02:26.4]} 1-0

[Event "*** MasterClass Titled Tuesday Blitz"]
[Site "Chess.com"]
[Date "2017.09.05"]
[Round "3"]
[White "wonderfultime"]
[Black "Yaacovn"]
[Result "1/2-1/2"]
[WhiteElo "2668"]
[BlackElo "2633"]
[TimeControl "180+2"]
[EndTime "13:39:21 PDT"]
[Termination "Game drawn by agreement"]

1. d4 {[%clk 0:02:51.5]} 1... d5 {[%clk 0:03:00.3]} 2. c4 {[%clk 0:02:51.5]}
2... e6 {[%clk 0:03:00.4]} 3. Nf3 {[%clk 0:02:52.2]} 3... Nf6 {[%clk 0:03:00.8]}
4. Nc3 {[%clk 0:02:53.5]} 4... Be7 {[%clk 0:03:01.2]} 5. Bf4 {[%clk 0:02:54.3]}
5... Nbd7 {[%clk 0:02:58.7]} 6. e3 {[%clk 0:02:55]} 6... O-O {[%clk 0:02:58.2]}
7. a3 {[%clk 0:02:38.3]} 7... dxc4 {[%clk 0:02:53.7]} 8. Bxc4 {[%clk 0:02:37.6]}
8... a6 {[%clk 0:02:55]} 9. O-O {[%clk 0:02:12.8]} 9... b5 {[%clk 0:02:46.8]}
10. Bd3 {[%clk 0:02:13]} 10... Bb7 {[%clk 0:02:47.4]} 11. b4 {[%clk 0:02:12.6]}
11... Nb6 {[%clk 0:02:42.8]} 12. Bg3 {[%clk 0:02:02.4]} 12... Bd6 {[%clk
0:02:41]} 13. Bh4 {[%clk 0:02:01.5]} 13... Be7 {[%clk 0:02:40.9]} 14. Qc2 {[%clk
0:02:01.5]} 14... h6 {[%clk 0:02:40.9]} 15. Bxf6 {[%clk 0:02:02.4]} 15... Bxf6
{[%clk 0:02:41.4]} 16. Ne4 {[%clk 0:02:02.2]} 16... Bd5 {[%clk 0:02:29.1]} 17.
Nc5 {[%clk 0:01:57.2]} 17... Bxf3 {[%clk 0:02:12.4]} 18. gxf3 {[%clk 0:01:58.3]}
18... e5 {[%clk 0:02:12.9]} 19. dxe5 {[%clk 0:00:43.2]} 19... Bxe5 {[%clk
0:02:11]} 20. Rad1 {[%clk 0:00:40.3]} 20... Bxh2+ {[%clk 0:01:54.9]} 21. Kxh2
{[%clk 0:00:40.7]} 21... Qh4+ {[%clk 0:01:54.5]} 22. Kg2 {[%clk 0:00:41.2]}
1/2-1/2